fUSD/lending_fUSD_20260116
["ID","MTS","AMOUNT","RATE_DAILY","PERIOD"]
[402203787,1768597224047,326.78,7.8e-05,2]
[402203788,1768597224111,326.78,8.21e-05,2]
[402203789,1768597224228,326.78,8.621e-05,2]
[402203790,1768597224389,326.78,9.031e-05,2]
[402203791,1768597224593,326.78,9.441e-05,2]
[402203792,1768597224823,326.78,9.852e-05,2]
[402203793,1768597225014,326.78,0.00010262,2]
[402203794,1768597225235,326.78,0.00010673,2]
[402203795,1768597225447,326.78,0.00011083,2]
[402203796,1768597225681,326.78,0.00011494,2]
[402203797,1768597225876,326.78,0.00011904,2]
[402203798,1768597226093,326.78,0.00012315,2]
[402203799,1768597226319,326.78,0.00012725,2]
[402203800,1768597226555,326.78,0.00013136,2]
[402203801,1768597226796,326.78,0.00013546,2]
[402203802,1768597226988,326.78,0.00013957,2]
[402203803,1768597227195,326.78,0.00014367,2]
[402203804,1768597275781,2046.13253472,0.0001449,2]
[402203805,1768597292847,2170.5061,0.00014487,2]
[402203806,1768597297630,534.24859336,0.0001448,2]
[402203807,1768597303179,2961.66277192,0.00014487,2]
[402203808,1768597303201,10000.01,0.00014487,2]
[402203809,1768597303226,10000.01,0.00014487,2]
[402203810,1768597303250,10000.01,0.00014487,2]
[402203811,1768597303271,3520.05952808,0.00014487,2]
[402203812,1768597303416,534.24859335,0.00014483,2]
[402203813,1768597309347,534.24859335,0.00014486,2]
[402203814,1768597347947,840.3356,0.00014487,2]
[402203815,1768597360551,1977.8039,0.0001449,2]
[402203816,1768597378743,500.0,0.00014481,2]
[402203817,1768597382114,927.39408066,0.0001449,2]
[402203818,1768597384536,1165.91970456,0.0001449,2]
[402203819,1768597384560,6456.57689544,0.0001449,2]
[402203820,1768597415698,1500.0,0.00014399,2]
[402203821,1768597421200,2043.43310456,0.00014487,2]
[402203822,1768597421224,873.07999544,0.00014487,2]
[402203823,1768597427614,4367.7046,0.00014487,2]
[402203824,1768597433446,2500.0,0.0001449,2]
[402203825,1768597447257,1000.0,0.00014437,2]
[402203826,1768597584439,1259.22540456,0.0001449,2]
[402203827,1768597584464,1240.77459544,0.0001449,2]
[402203828,1768597612302,8759.23540456,0.00014388,2]
[402203829,1768597612327,819.07459544,0.00014388,2]
[402203830,1768597640423,2272.29,0.00014348,2]
[402203831,1768597663956,1841.51928123,0.0001449,2]
[402203833,1768597703810,5067.12612333,0.00014481,2]
[402203834,1768597703836,10000.01,0.00014481,2]
[402203835,1768597703862,10000.01,0.00014481,2]
[402203836,1768597703888,10000.01,0.00014481,2]
[402203837,1768597703914,10000.01,0.00014481,2]
[402203838,1768597703939,10000.01,0.00014481,2]
[402203839,1768597703964,10000.01,0.00014481,2]
[402203840,1768597703990,10000.01,0.00014481,2]
[402203841,1768597704017,10000.01,0.00014481,2]
[402203842,1768597704044,10000.01,0.00014481,2]
[402203843,1768597720988,-393.10784969,0.00014481,2]
[402203844,1768597726235,-1395.92019398,0.00014481,2]
[402203845,1768597726404,-10000.01,0.00014481,2]
[402203846,1768597726506,-10000.01,0.00014481,2]
[402203847,1768597726620,-10000.01,0.00014481,2]
[402203848,1768597726715,-10000.01,0.00014481,2]
[402203849,1768597726821,-10000.01,0.00014481,2]
[402203850,1768597726959,-10000.01,0.00014481,2]
[402203851,1768597729099,-10000.01,0.00014481,2]
[402203852,1768597729224,-10000.01,0.00014481,2]
[402203853,1768597729393,-10000.01,0.00014481,2]
[402203854,1768597729514,-10000.01,0.00014481,2]
[402203855,1768597747620,-300.0,0.0001448,2]
[402203856,1768597747647,-150.0,0.0001448,2]
[402203857,1768597747675,-300.0,0.0001448,2]
[402203858,1768597747702,-250.0,0.00014481,2]
[402203859,1768597747793,-8000.01,0.00014481,2]
[402203860,1768597747814,-10000.01,0.00014481,2]
[402203861,1768597748017,5272.46942401,7.945e-05,2]
[402203862,1768597748040,5272.46942401,7.945e-05,2]
[402203863,1768597748063,3972.11484998,7.945e-05,2]
[402203864,1768597753926,-10000.01,0.00014481,2]
[402203865,1768597754040,-10000.01,0.00014481,2]
[402203866,1768597764786,-199.66334947,0.00014481,2]
[402203867,1768597766197,-165.14684499,0.00014481,2]
[402203868,1768597768373,-312.1502592,0.00014481,2]
[402203869,1768597769882,-351.10175427,0.00014481,2]
[402203870,1768597773824,-475.43198559,0.00014481,2]
[402203871,1768597774929,475.431986,0.00014408,2]
[402203872,1768597775519,-300.0,0.00014481,2]
[402203873,1768597777081,-195.8197408,0.00014481,2]
[402203878,1768597832253,-286.2885,0.00014479,2]
[402203879,1768597832263,-112.92927302,0.0001448,2]
[402203880,1768597832294,-187.07072698,0.0001448,2]
[402203881,1768597832304,-1200.0,0.0001448,2]
[402203882,1768597832315,-195.0,0.00014481,2]
[402203883,1768597832325,-250.0,0.00014481,2]
[402203884,1768597832336,-270.0,0.00014481,2]
[402203885,1768597832346,-10932.9115579,0.00014481,2]
[402203886,1768597832357,-61098.5779133,0.00014481,2]
[402203887,1768597832370,-9081.0,0.00014481,2]
[402203888,1768597832384,-41428.78290757,0.00014481,2]
[402203889,1768597832396,-899.86519061,0.00014481,2]
[402203890,1768597832428,-864.08449454,0.00014481,2]
[402203891,1768597832439,-1932.64807024,0.00014481,2]
[402203892,1768597832450,-604.81359756,0.00014481,2]
[402203893,1768597832494,-20589.78437754,0.00014481,2]
[402203894,1768597832506,-22730.31822688,0.00014481,2]
[402203895,1768597832517,-1195.98280455,0.00014481,2]
[402203897,1768597832528,-7211.0,0.00014481,2]
[402203899,1768597832540,-524.13627089,0.00014481,2]
[402203901,1768597832551,-536.13676,0.00014481,2]
[402203904,1768597832566,-641.28142672,0.00014481,2]
[402203906,1768597832577,-522.04790989,0.00014481,2]
[402204162,1768597838344,-1198.51119049,0.00014481,2]
[402204163,1768597838357,-6235.3269,0.00014484,2]
[402204164,1768597838371,-2500.0,0.0001449,2]
[402204165,1768597838383,-30000.03,0.0001449,2]
[402204166,1768597838397,-1200.0,0.0001458,2]
[402204167,1768597838410,-3386.862,0.00014581,2]
[402204168,1768597838422,-217.036,0.00014581,2]
[402204169,1768597838436,-313.11,0.00014581,2]
[402204170,1768597838448,-200.0,0.00014581,2]
[402204171,1768597838461,-200.0,0.00014581,2]
[402204172,1768597838474,-151.0,0.00014581,2]
[402204173,1768597838488,-151.0,0.00014581,2]
[402204174,1768597838500,-151.0,0.00014581,2]
[402204175,1768597838513,-151.0,0.00014581,2]
[402204176,1768597838526,-200.0,0.00014581,2]
[402204177,1768597838538,-151.0,0.00014581,2]
[402204178,1768597838554,-151.0,0.00014581,2]
[402204179,1768597838567,-151.0,0.00014581,2]
[402204180,1768597838579,-151.0,0.00014581,2]
[402204181,1768597838595,-151.0,0.00014581,2]
[402204182,1768597838613,-500.0,0.00014581,2]
[402204183,1768597838637,-500.0,0.00014581,2]
[402204184,1768597838655,-151.0,0.00014581,2]
[402204185,1768597838668,-500.0,0.00014581,2]
[402204187,1768597838680,-500.0,0.00014581,2]
[402204188,1768597838693,-151.0,0.00014581,2]
[402204189,1768597838705,-500.0,0.00014581,2]
[402204190,1768597838718,-500.0,0.00014581,2]
[402204191,1768597838730,-500.0,0.00014581,2]
[402204193,1768597838742,-500.0,0.00014581,2]
[402204195,1768597838754,-500.0,0.00014581,2]
[402204197,1768597838767,-500.0,0.00014581,2]
[402204198,1768597838778,-500.0,0.00014581,2]
[402204199,1768597838790,-500.0,0.00014581,2]
[402204200,1768597838803,-500.0,0.00014581,2]
[402204201,1768597838815,-500.0,0.00014581,2]
[402204202,1768597838828,-500.0,0.00014581,2]
[402204203,1768597838839,-500.0,0.00014581,2]
[402204204,1768597838851,-500.0,0.00014581,2]
[402204205,1768597838864,-500.0,0.00014581,2]
[402204206,1768597838876,-500.0,0.00014581,2]
[402204207,1768597838888,-500.0,0.00014581,2]
[402204208,1768597838903,-500.0,0.00014581,2]
[402204209,1768597838916,-500.0,0.00014581,2]
[402204210,1768597838929,-151.0,0.00014581,2]
[402204211,1768597838941,-151.0,0.00014581,2]
[402204212,1768597838954,-151.0,0.00014581,2]
[402204213,1768597838967,-151.0,0.00014581,2]
[402204214,1768597838979,-151.0,0.00014581,2]
[402204215,1768597838992,-151.0,0.00014581,2]
[402204216,1768597839005,-151.0,0.00014581,2]
[402204217,1768597839017,-151.0,0.00014581,2]
[402204218,1768597839029,-151.0,0.00014581,2]
[402204219,1768597839041,-151.0,0.00014581,2]
[402204220,1768597839053,-151.0,0.00014581,2]
[402204221,1768597839065,-500.0,0.00014581,2]
[402204222,1768597839077,-246.0,0.00014583,2]
[402204223,1768597839089,-271.48160128,0.00014584,2]
[402204224,1768597839102,-500.91677592,0.00014584,2]
[402204225,1768597839114,-204.24910857,0.00014584,2]
[402204226,1768597839127,-500.0,0.00014584,2]
[402204227,1768597839139,-500.0,0.00014584,2]
[402204228,1768597839152,-500.14283223,0.00014584,2]
[402204229,1768597839165,-500.14283223,0.00014584,2]
[402204230,1768597839177,-500.0,0.00014584,2]
[402204231,1768597839189,-248.62920663,0.00014584,2]
[402204232,1768597839202,-500.14283223,0.00014584,2]
[402204233,1768597839215,-479.89812317,0.00014584,2]
[402204234,1768597839228,-500.14283223,0.00014584,2]
[402204235,1768597839244,-500.14283223,0.00014584,2]
[402204236,1768597839257,-500.14283223,0.00014584,2]
[402204237,1768597839268,-500.14283223,0.00014584,2]
[402204238,1768597839279,-500.14283223,0.00014584,2]
[402204239,1768597839288,-500.14283223,0.00014584,2]
[402204240,1768597839297,-500.14283223,0.00014584,2]
[402204241,1768597839307,-500.14283223,0.00014584,2]
[402204242,1768597839317,-500.14283223,0.00014584,2]
[402204243,1768597839331,-500.14283223,0.00014584,2]
[402204244,1768597839340,-500.14283223,0.00014584,2]
[402204245,1768597839349,-500.14283223,0.00014584,2]
[402204246,1768597839359,-500.14283223,0.00014584,2]
[402204247,1768597839368,-500.14283223,0.00014584,2]
[402204248,1768597839378,-500.14283223,0.00014584,2]
[402204249,1768597839388,-500.14283223,0.00014584,2]
[402204250,1768597839399,-500.14283223,0.00014584,2]
[402204251,1768597839409,-500.14283223,0.00014584,2]
[402204252,1768597839419,-500.14283223,0.00014584,2]
[402204253,1768597839429,-500.14283223,0.00014584,2]
[402204254,1768597839439,-500.14283223,0.00014584,2]
[402204255,1768597839449,-500.14283223,0.00014584,2]
[402204256,1768597839458,-500.14283223,0.00014584,2]
[402204257,1768597839864,-500.14283223,0.00014584,2]
[402204258,1768597839894,-500.14283223,0.00014584,2]
[402204259,1768597839915,-500.14283223,0.00014584,2]
[402204260,1768597839931,-500.14283223,0.00014584,2]
[402204261,1768597839940,-500.14283223,0.00014584,2]
[402204262,1768597839950,-500.14283223,0.00014584,2]
[402204263,1768597839959,-500.14283223,0.00014584,2]
[402204264,1768597839968,-500.14283223,0.00014584,2]
[402204265,1768597839977,-500.14283223,0.00014584,2]
[402204266,1768597839988,-500.14283223,0.00014584,2]
[402204267,1768597839998,-500.14283223,0.00014584,2]
[402204268,1768597840007,-500.14283223,0.00014584,2]
[402204269,1768597840017,-500.14283223,0.00014584,2]
[402204270,1768597840027,-500.14283223,0.00014584,2]
[402204271,1768597840036,-500.14283223,0.00014584,2]
[402204272,1768597840045,-500.14283223,0.00014584,2]
[402204273,1768597840054,-500.14283223,0.00014584,2]
[402204274,1768597840065,-500.14283223,0.00014584,2]
[402204275,1768597840074,-500.14283223,0.00014584,2]
[402204276,1768597840084,-500.14283223,0.00014584,2]
[402204277,1768597840093,-500.14283223,0.00014584,2]
[402204278,1768597840103,-2043.01627739,0.00014584,2]
[402204279,1768597840112,-2043.01627739,0.00014584,2]
[402204280,1768597840121,-2043.01627739,0.00014584,2]
[402204281,1768597840131,-2043.01627739,0.00014584,2]
[402204282,1768597840140,-2043.01627739,0.00014584,2]
[402204283,1768597840149,-2043.01627739,0.00014584,2]
[402204284,1768597840158,-2043.01627739,0.00014584,2]
[402204285,1768597840167,-2043.01627739,0.00014584,2]
[402204286,1768597840176,-2043.01627739,0.00014584,2]
[402204287,1768597840185,-2043.01627739,0.00014584,2]
[402204288,1768597840195,-2043.01627739,0.00014584,2]
[402204289,1768597840204,-2043.01627739,0.00014584,2]
[402204290,1768597840214,-2043.01627739,0.00014584,2]
[402204291,1768597840223,-2043.01627739,0.00014584,2]
[402204292,1768597840232,-2043.01627739,0.00014584,2]
[402204293,1768597840241,-2043.01627739,0.00014584,2]
[402204294,1768597840250,-2043.01627739,0.00014584,2]
[402204295,1768597840260,-2043.01627739,0.00014584,2]
[402204296,1768597840270,-2043.01627739,0.00014584,2]
[402204297,1768597840280,-2043.01627739,0.00014584,2]
[402204298,1768597840289,-2043.01627739,0.00014584,2]
[402204299,1768597840299,-2043.01627739,0.00014584,2]
[402204300,1768597840307,-2043.01627739,0.00014584,2]
[402204301,1768597840317,-2043.01627739,0.00014584,2]
[402204302,1768597840329,-2043.01627739,0.00014584,2]
[402204303,1768597840338,-2043.01627739,0.00014584,2]
[402204304,1768597840347,-2043.01627739,0.00014584,2]
[402204305,1768597840357,-2043.01627739,0.00014584,2]
[402204306,1768597840367,-2043.01627739,0.00014584,2]
[402204307,1768597840376,-2043.01627739,0.00014584,2]
[402204308,1768597840385,-2043.01627739,0.00014584,2]
[402204309,1768597840395,-2043.01627739,0.00014584,2]
[402204310,1768597840405,-2043.01627739,0.00014584,2]
[402204311,1768597840414,-2071.39150349,0.00014584,2]
[402204312,1768597840423,-2071.39150349,0.00014584,2]
[402204313,1768597840432,-2071.39150349,0.00014584,2]
[402204314,1768597840441,-2071.39150349,0.00014584,2]
[402204315,1768597840450,-2071.39150349,0.00014584,2]
[402204316,1768597840460,-2071.39150349,0.00014584,2]
[402204317,1768597840469,-2071.39150349,0.00014584,2]
[402204318,1768597840478,-2071.39150349,0.00014584,2]
[402204319,1768597840487,-500.0,0.00014587,2]
[402204320,1768597840497,-366.87057894,0.00014589,2]
[402204321,1768597840506,-232.22412457,0.00014589,2]
[402204322,1768597840515,-500.0,0.00014589,2]
[402204323,1768597840525,-500.0,0.00014589,2]
[402204324,1768597840534,-500.0,0.00014589,2]
[402204325,1768597840544,-605.52666226,0.00014589,2]
[402204326,1768597840553,-269.13705878,0.00014589,2]
[402204327,1768597840562,-1109.1708325,0.00014589,5]
[402204328,1768597840572,-501.3862088,0.00014589,2]
[402204329,1768597840582,-500.0,0.00014589,2]
[402204330,1768597840591,-512.6608624,0.00014589,2]
[402204331,1768597840600,-500.0,0.00014589,2]
[402204332,1768597840610,-500.0,0.00014589,2]
[402204333,1768597840619,-500.0,0.00014589,2]
[402204334,1768597840628,-500.0,0.00014589,2]
[402204335,1768597840638,-500.0,0.00014589,2]
[402204336,1768597840647,-508.16450939,0.00014589,2]
[402204337,1768597840656,-500.0,0.00014589,2]
[402204338,1768597840665,-500.0,0.00014589,2]
[402204339,1768597840675,-500.0,0.00014589,2]
[402204340,1768597840684,-500.0,0.00014589,2]
[402204341,1768597840693,-500.0,0.00014589,2]
[402204342,1768597840702,-635.07593505,0.00014589,2]
[402204343,1768597840710,-176.14939409,0.0001459,2]
[402204344,1768597840763,-125.85060591,0.0001459,2]
[402204345,1768597840772,-1000.0,0.00014599,2]
[402204347,1768597840781,-179.04996196,0.00014698,2]
[402204349,1768597840791,-320.95003804,0.00014698,2]
[402204350,1768597840800,-144.21276269,0.00014698,2]
[402204351,1768597840811,-355.78723731,0.00014698,2]
[402204352,1768597840820,-500.0,0.00014698,2]
[402204353,1768597840829,-500.0,0.00014698,2]
[402204355,1768597840838,-500.0,0.00014698,2]
[402204356,1768597840849,-500.0,0.00014698,2]
[402204357,1768597840857,-534.48889788,0.00014698,2]
[402204358,1768597840869,-65.51610852,0.00014698,2]
[402204359,1768597840878,-326.78,0.00014778,2]
[402204360,1768597840887,-313.11,0.00014855,2]
[402204361,1768597840896,-147.10870395,0.00014861,2]
[402204362,1768597841373,-205.60357106,0.00014861,2]
[402204363,1768597841383,-1719.07494466,0.00014869,2]
[402204364,1768597841396,-122.44433652,0.00014869,2]
[402204365,1768597841405,-200.0,0.000149,5]
[402204366,1768597841414,-467.24,0.000149,2]
[402204367,1768597841424,-557.39,0.000149,2]
[402204368,1768597841433,-488.57215447,0.000149,2]
[402204369,1768597841444,-68.81784553,0.000149,2]
[402204370,1768597841454,-171.57,0.000149,2]
[402204371,1768597841463,-182.27,0.000149,2]
[402204372,1768597841472,-557.39,0.000149,2]
[402204373,1768597841481,-449.86715447,0.00015065,2]
[402204374,1768597841493,-1822.42284553,0.00015065,2]
[402204375,1768597841502,-313.11,0.00015129,2]
[402204376,1768597841512,-326.78,0.00015188,2]
[402204377,1768597841521,-1841.51928118,0.00015248,2]
[402204378,1768597841530,-313.11,0.00015403,2]
[402204379,1768597841539,-326.78,0.00015599,2]
[402204380,1768597841548,-255.0,0.0001561,2]
[402204381,1768597841557,-1841.51928118,0.00015627,2]
[402204382,1768597841566,-288.99685017,0.00015673,2]
[402204383,1768597841575,-313.12,0.00015677,2]
[402204384,1768597841584,-3029.02824494,0.00015724,2]
[402204385,1768597841596,-4600.22880001,0.00015724,2]
[402204386,1768597841614,-11754.82295505,0.00015724,2]
[402204387,1768597841623,-372.89690242,0.00015773,2]
[402204388,1768597841633,-2272.29,0.00015783,2]
[402204389,1768597841643,-420.0,0.00015856,2]
[402204390,1768597841653,-420.0,0.00015856,2]
[402204391,1768597841663,-6800.01,0.00015876,2]
[402204392,1768597841673,-250.0,0.00015928,2]
[402204393,1768597841683,-1680.0,0.00015928,2]
[402204394,1768597841694,-195.0,0.00015928,2]
[402204395,1768597841703,-250.0,0.00015928,2]
[402204396,1768597841714,-342.54561698,0.00015929,2]
[402204397,1768597841723,-500.0,0.00015945,2]
[402204398,1768597841732,-342.66,0.00015956,2]
[402204399,1768597841742,-1841.51928118,0.00016006,2]
[402204400,1768597841752,-288.99685012,0.00016044,2]
[402204401,1768597841761,-200.0,0.00016097,2]
[402204402,1768597841770,-347.35,0.00016113,2]
[402204403,1768597841780,-967.12,0.00016175,2]
[402204404,1768597841789,-483.56,0.00016175,2]
[402204405,1768597841798,-483.56,0.00016175,2]
[402204406,1768597841808,-483.56,0.00016175,2]
[402204407,1768597841818,-337.84,0.00016175,2]
[402204408,1768597841828,-171.5332109,0.00016199,2]
[402204409,1768597841839,-1000.0,0.00016242,2]
[402204410,1768597841849,-371.81,0.00016333,2]
[402204411,1768597841860,-517.60145204,0.00016339,2]
[402204412,1768597841870,-1841.51928118,0.00016384,2]
[402204413,1768597841880,-1173.42,0.00016401,2]
[402204414,1768597841889,-288.99685012,0.00016415,2]
[402204415,1768597841898,-500.0,0.00016438,2]
[402204416,1768597841908,-500.0,0.00016438,2]
[402204417,1768597841918,-500.0,0.00016438,2]
[402204418,1768597841927,-500.0,0.00016438,2]
[402204419,1768597841936,-500.0,0.00016438,2]
[402204420,1768597841947,-500.0,0.00016438,2]
[402204421,1768597841956,-500.0,0.00016438,2]
[402204422,1768597841965,-500.0,0.00016438,2]
[402204423,1768597841975,-500.0,0.00016438,2]
[402204424,1768597841984,-500.0,0.00016438,2]
[402204425,1768597841994,-500.0,0.00016438,2]
[402204426,1768597842004,-500.0,0.00016438,2]
[402204427,1768597842014,-500.0,0.00016438,2]
[402204428,1768597842025,-500.0,0.00016438,2]
[402204429,1768597842034,-500.0,0.00016438,2]
[402204430,1768597842044,-500.0,0.00016438,2]
[402204431,1768597842055,-500.0,0.00016438,2]
[402204432,1768597842066,-500.0,0.00016438,2]
[402204433,1768597842076,-500.0,0.00016438,2]
[402204434,1768597842086,-500.0,0.00016438,2]
[402204435,1768597842096,-500.0,0.00016438,2]
[402204436,1768597842106,-500.0,0.00016438,2]
[402204437,1768597842116,-500.0,0.00016438,2]
[402204438,1768597842125,-500.0,0.00016438,2]
[402204439,1768597842135,-500.0,0.00016438,2]
[402204440,1768597842144,-500.0,0.00016438,2]
[402204441,1768597842154,-500.0,0.00016438,2]
[402204442,1768597842164,-500.0,0.00016438,2]
[402204443,1768597842174,-500.0,0.00016438,2]
[402204444,1768597842184,-500.0,0.00016438,2]
[402204445,1768597842194,-500.0,0.00016438,2]
[402204446,1768597842205,-500.0,0.00016438,2]
[402204447,1768597842215,-500.0,0.00016438,2]
[402204448,1768597842225,-500.0,0.00016438,2]
[402204449,1768597842234,-500.0,0.00016438,2]
[402204450,1768597842244,-500.0,0.00016438,2]
[402204451,1768597842253,-500.0,0.00016438,2]
[402204452,1768597842263,-500.0,0.00016438,2]
[402204453,1768597842272,-500.0,0.00016438,2]
[402204454,1768597842282,-500.0,0.00016438,2]
[402204455,1768597842292,-500.0,0.00016438,2]
[402204456,1768597842302,-500.0,0.00016438,2]
[402204457,1768597842312,-500.0,0.00016438,2]
[402204458,1768597842324,-500.0,0.00016438,2]
[402204459,1768597842337,-500.0,0.00016438,2]
[402204460,1768597842346,-500.0,0.00016438,2]
[402204461,1768597842356,-500.0,0.00016438,2]
[402204462,1768597842366,-500.0,0.00016438,2]
[402204463,1768597842378,-500.0,0.00016438,2]
[402204464,1768597842389,-500.0,0.00016438,2]
[402204465,1768597842400,-573.39785119,0.00016438,2]
[402204466,1768597842410,-500.0,0.00016438,2]
[402204467,1768597842420,-500.0,0.00016438,2]
[402204468,1768597842430,-500.0,0.00016438,2]
[402204469,1768597842440,-1000.0,0.00016439,2]
[402204470,1768597842449,-165.03,0.0001644,2]
[402204471,1768597842459,-200.0,0.00016445,2]
[402204472,1768597842468,-500.0,0.0001645,2]
[402204473,1768597842477,-500.0,0.00016477,2]
[402204474,1768597842486,-2272.29,0.000165,2]
[402204475,1768597842496,-167.9,0.00016712,2]
[402204476,1768597842505,-13557.0,0.0001673,2]
[402204477,1768597842515,-1841.51928118,0.00016763,2]
[402204478,1768597842525,-288.99685012,0.00016787,2]
[402204479,1768597842535,-433.0,0.00016826,2]
[402204480,1768597842545,-400.0,0.000169,6]
[402204481,1768597842554,-2000.0,0.00016938,2]
[402204482,1768597842564,-500.0,0.00016938,2]
[402204483,1768597842573,-289.83,0.00016969,2]
[402204484,1768597842583,-1000.0,0.00017056,2]
[402204485,1768597842594,-174.61919141,0.00017099,2]
[402204486,1768597842604,-1000.0,0.00017099,2]
[402204487,1768597842615,-1000.0,0.00017099,2]
[402204488,1768597842624,-1000.0,0.00017099,2]
[402204489,1768597842633,-1000.0,0.00017099,2]
[402204490,1768597842644,-1000.0,0.00017099,2]
[402204491,1768597842653,-1000.0,0.00017099,2]
[402204492,1768597842663,-1000.0,0.00017099,2]
[402204493,1768597842672,-574.12855637,0.00017099,2]
[402204494,1768597842685,-322.6107,0.00017099,2]
[402204495,1768597842697,-689.66878,0.00017099,2]
[402204496,1768597842708,-250.0,0.00017099,2]
[402204497,1768597842718,-250.0,0.00017099,2]
[402204498,1768597842727,-250.0,0.00017099,2]
[402204499,1768597842736,-250.0,0.00017099,2]
[402204500,1768597842745,-250.0,0.00017099,2]
[402204501,1768597842755,-250.0,0.00017099,2]
[402204502,1768597842764,-250.0,0.00017099,2]
[402204503,1768597842773,-250.0,0.00017099,2]
[402204504,1768597842782,-214.19143741,0.00017099,2]
[402204505,1768597842791,-1239.0,0.00017099,2]
[402204506,1768597842801,-483.56,0.00017134,2]
[402204507,1768597842811,-1841.51928118,0.00017142,2]
[402204508,1768597842820,-288.99685012,0.00017158,2]
[402204509,1768597842829,-2272.29,0.00017217,2]
[402204510,1768597842839,-150.0,0.00017218,2]
[402204511,1768597842848,-371.81,0.00017241,2]
[402204512,1768597842857,-600.0,0.000173,6]
[402204513,1768597842866,-587.0,0.00017363,2]
[402204514,1768597842875,-587.0,0.00017363,2]
[402204515,1768597842884,-1000.0,0.000174,2]
[402204516,1768597842893,-900.0,0.000174,6]
[402204517,1768597842902,-1000.0,0.00017424,2]
[402204518,1768597842912,-1406.0,0.00017443,2]
[402204519,1768597842921,-1331.0,0.00017443,2]
[402204520,1768597842930,-1268.0,0.00017443,2]
[402204521,1768597842939,-412.0,0.00017455,2]
[402204522,1768597842948,-915.0,0.00017455,2]
[402204523,1768597842957,-1202.0,0.00017455,2]
[402204524,1768597842967,-4824.0,0.00017455,2]
[402204525,1768597842976,-6559.0,0.00017455,2]
[402204526,1768597842985,-2439.001,0.00017455,2]
[402204527,1768597842995,-155.53654206,0.00017461,2]
[402204528,1768597843005,-736.0,0.0001749,2]
[402204529,1768597843014,-289.0,0.00017491,2]
[402204530,1768597843023,-2000.0,0.000175,2]
[402204531,1768597843032,-1100.0,0.000175,6]
[402204532,1768597843041,-2351.0,0.00017521,2]
[402204533,1768597843052,-1841.51928118,0.00017521,2]
[402204534,1768597843061,-288.99685012,0.00017529,2]
[402204535,1768597843071,-1000.0,0.000176,2]
[402204536,1768597843080,-200.0,0.000176,6]
[402204537,1768597843089,-500.0,0.00017611,2]
[402204538,1768597843099,-500.0,0.00017611,2]
[402204540,1768597843108,-500.0,0.00017611,2]
[402204541,1768597843117,-500.0,0.00017611,2]
[402204542,1768597843127,-500.0,0.00017611,2]
[402204543,1768597843136,-150.0,0.00017611,2]
[402204544,1768597843146,-150.0,0.00017611,2]
[402204545,1768597843157,-150.0,0.00017611,2]
[402204546,1768597843166,-500.0,0.00017611,2]
[402204547,1768597843175,-500.0,0.00017611,2]
[402204548,1768597843184,-150.0,0.00017611,2]
[402204549,1768597843193,-500.0,0.00017611,2]
[402204550,1768597843204,-500.0,0.00017611,2]
[402204551,1768597843213,-206.70817154,0.00017611,2]
[402204552,1768597843223,-500.0,0.00017611,2]
[402204553,1768597843233,-197.17265685,0.00017611,2]
[402204554,1768597843243,-500.0,0.00017611,2]
[402204556,1768597843253,-500.0,0.00017611,2]
[402204557,1768597843262,-500.0,0.00017611,2]
[402204559,1768597843271,-736.0,0.00017637,2]
[402204561,1768597843280,-2294.9,0.00017639,2]
[402204563,1768597843289,-2170.30482224,0.0001764,2]
[402204568,1768597843454,-181.08010149,0.00017647,2]